Cogmind - Beta 9.6 @@@ ROGUE MODE // 2020.05.14 @ 23:23:26 Player: TheGreatBorealis Result: Destroyed by S-27 Virus with Autogun Performance ------------- Evolutions (4) 2000 Regions Visited (6) 1200 Robots Destroyed (4) 20 Value Destroyed (148) 148 Prototype IDs (0) 0 Alien Tech Used (0) 0 Bonus (834) 834 TOTAL SCORE: 4202 Bonus ------- Pacifist 834 Cogmind --------- Core Integrity 0/850 Matter 244/300 Energy 98/100 System Corruption 7% Temperature Cool (0) Movement Hovering (60) Location -6/Factory Parts ------- > --- POWER (3) -------- (None) > --- PROPULSION (5) --- Improved Gravmag System > --- UTILITY (5) ------ Enhanced Optical Array > --- WEAPON (2) ------- Katana > --- INVENTORY (4) ---- Heat Sink ECM Suite Hacking Suite Peak State ------------ > --- POWER ------------ Ion Engine Light Ion Engine > --- PROPULSION ------- Carbon-fiber Leg Carbon-fiber Leg Improved Carbon-fiber Leg Improved Carbon-fiber Leg > --- UTILITY ---------- High-capacity Storage Unit Enhanced Optical Array Long-range Sensor Array Signal Interpreter ECM Suite > --- WEAPON ----------- Heavy Laser Katana > --- INVENTORY -------- Flight Unit Heat Sink Hacking Suite [Rating: 34] Favorites ----------- Power Ion Engine Engine Ion Engine Propulsion Carbon-fiber Leg Leg Carbon-fiber Leg Wheel Compact Wheel Hover Unit Gravmag System Flight Unit Flight Unit Utility Signal Interpreter Device ECM Suite Storage High-capacity Storage Unit Processor Signal Interpreter Weapon Medium Laser Energy Gun Medium Laser Slashing Weapon Katana Build | -11 -10 -10 -9 -8 -7 -6 ------- Run | Scr Mat Min Mat Mat Fac Fac Slots Evolved 8 | . . . 2 2 2 2 Power 2 | . . . . 1 1 . Propulsion 3 | . . . 1 . 1 1 Utility 3 | . . . 1 1 . 1 Weapon . | . . . . . . . Parts Attached 38 | 5 5 . 6 6 7 9 Power 4 | 1 . . . 2 1 . Engine 4 | 1 . . . 2 1 . Core . | . . . . . . . Reactor . | . . . . . . . Propulsion 14 | 2 2 . 1 1 4 4 Treads . | . . . . . . . Leg 5 | . . . . . 4 1 Wheel 3 | 2 . . . 1 . . Hover 2 | . . . . . . 2 Flight 4 | . 2 . 1 . . 1 Utility 14 | 1 2 . 4 3 1 3 Device 9 | . 1 . 3 3 . 2 Storage 2 | 1 . . . . 1 . Processor 3 | . 1 . 1 . . 1 Hackware . | . . . . . . . Protection . | . . . . . . . Artifact . | . . . . . . . Weapon 6 | 1 1 . 1 . 1 2 Energy Gun 4 | 1 1 . 1 . . 1 Energy Cannon . | . . . . . . . Ballistic Gun . | . . . . . . . Ballistic Cannon . | . . . . . . . Launcher . | . . . . . . . Special Weapon . | . . . . . . . Impact Weapon . | . . . . . . . Slashing Weapon 2 | . . . . . 1 1 Piercing Weapon . | . . . . . . . Special Melee Weapon . | . . . . . . . Unidentified Prototypes . | . . . . . . . Parts Lost 20 | . . . 5 2 . 13 Power 3 | . . . 1 . . 2 Propulsion 9 | . . . 1 1 . 7 Utility 4 | . . . 1 1 . 2 Weapon 4 | . . . 2 . . 2 Highest Loss Streak 10 | . . . 5 2 . 10 Average Slot Usage (%) 63 | . 88 85 95 49 74 29 Engine 8 | . 14 14 11 6 10 2 Leg 10 | . . . . . 26 6 Wheel 4 | . 21 . . 1 . . Flight 5 | . 6 28 32 12 . . Device 8 | . 10 14 10 11 9 3 Storage 2 | . 3 . . . 4 1 Processor 13 | . 10 14 21 18 15 9 Energy Gun 6 | . 20 14 20 . . 1 Slashing Weapon 2 | . . . . . 5 3 Naked Turns . | . . . . . . . Heaviest Build 49 | 11 11 8 10 8 43 49 Greatest Support 81 | 32 32 8 12 16 63 81 Greatest Overweight (x) 2 | . . . . . . 2 Average Overweight (x) . | . . . . . . . Largest Inventory Capacity 12 | 6 6 4 4 4 12 12 Average Capacity 6 | 4 4 4 4 4 9 5 Most Carried 7 | 3 4 4 4 4 7 5 Average Carried 3 | . 2 4 3 3 4 3 Final Capacity 12 | 6 4 4 4 4 12 4 Final Carried 6 | 1 4 4 4 2 6 3 Class Distribution -------------------- 81% | Mutant 13% | Scout 4% | Assassin Dominant Class ---------------- Mutant | -10/Materials Mutant | -10/Mines Scout | -9/Materials Scout | -8/Materials Mutant | -7/Factory Mutant | -6/Factory Resources | -11 -10 -10 -9 -8 -7 -6 ----------- Run | Scr Mat Min Mat Mat Fac Fac Matter Collected 399 | 226 74 . . . 56 43 Remotely . | . . . . . . . Salvage Created 212 | . . . . . 145 67 Parts 7 | . . . . . 4 3 Haulers Intercepted . | . . . . . . . Recyclers Shooed . | . . . . . . . Parts Field Recycled . | . . . . . . . Retrieved Matter . | . . . . . . . Parts Self-Destructed . | . . . . . . . Prevented . | . . . . . . . Kills | -11 -10 -10 -9 -8 -7 -6 ------- Run | Scr Mat Min Mat Mat Fac Fac Combat Hostiles Destroyed 3 | . . . . . 1 2 Melee 3 | . . . . . 1 2 Classes Destroyed 4 | . . . . . 2 2 Recycler 1 | . . . . . 1 . Swarmer 1 | . . . . . . 1 Hunter 1 | . . . . . 1 . Programmer 1 | . . . . . . 1 Best Kill Streak 1 | . . . . . 1 1 Combat Bots Only 1 | . . . . . 1 1 Max Kills in Single Turn 1 | . . . . . 1 1 Gunslinging . | . . . . . . . Exploded . | . . . . . . . Melee 1 | . . . . . 1 1 Uniques/NPCs Destroyed . | . . . . . . . Combat | -11 -10 -10 -9 -8 -7 -6 -------- Run | Scr Mat Min Mat Mat Fac Fac Damage Taken 2443 | . 116 . 205 138 345 1639 Core 1098 | . 31 . 48 68 92 859 Absorbed by Shields 20 | . . . . . . 20 Core Remaining (%) 89 | 100 . 87 88 87 86 . Volleys Fired 12 | . 2 . . . . 10 Largest 1 | . 1 . . . . 1 Hottest 69 | . 50 . . . . 69 Shots Fired 12 | . 2 . . . . 10 Gun 12 | . 2 . . . . 10 Cannon . | . . . . . . . Launcher . | . . . . . . . Special . | . . . . . . . Kinetic . | . . . . . . . Thermal 12 | . 2 . . . . 10 Explosive . | . . . . . . . Electromagnetic . | . . . . . . . Robot Hit Streak 5 | . 1 . . . . 5 Robot Miss Streak 1 | . 1 . . . . 1 Penetration Max . | . . . . . . . Secondary Targets . | . . . . . . . Shots Hit Robots 21 | . 1 . . . 12 8 Core Hits 11 | . . . . . 2 9 Critical Hits 1 | . . . . . 1 . Critical Kills . | . . . . . . . Critical Parts Destroyed 1 | . . . . . 1 . Melee Attacks 17 | . . . . . 16 1 Impact . | . . . . . . . Slashing 17 | . . . . . 16 1 Piercing . | . . . . . . . Sneak Attacks 3 | . . . . . 3 . Combat Hostiles . | . . . . . . . Follow-up Attacks . | . . . . . . . Damage Inflicted 858 | . 13 . . . 598 247 Guns 173 | . 13 . . . . 160 Cannons . | . . . . . . . Explosions . | . . . . . . . Melee 628 | . . . . . 598 30 Ramming 57 | . . . . . . 57 Kinetic . | . . . . . . . Thermal 173 | . 13 . . . . 160 Explosive . | . . . . . . . Electromagnetic . | . . . . . . . Impact . | . . . . . . . Slashing 628 | . . . . . 598 30 Piercing . | . . . . . . . Highest Corruption 7 | . . . . . 5 7 Average Corruption 4 | . . . . . 4 4 Corruption Purged . | . . . . . . . Effects 14 | . . . . . 7 7 Message Errors 4 | . . . . . 1 3 Matter Fused 4 | . . . . . 2 2 Heat Flow Errors 1 | . . . . . . 1 Energy Discharges 5 | . . . . . 4 1 Overload Shots . | . . . . . . . Overflow Damage 135 | . . . . . 135 . Projectiles . | . . . . . . . Explosions . | . . . . . . . Melee 135 | . . . . . 135 . Knockbacks . | . . . . . . . Impact . | . . . . . . . Kinetic . | . . . . . . . Secondary . | . . . . . . . Self-Inflicted Damage 24 | . . . . . . 24 Shots . | . . . . . . . Rammed 14 | . . . . . . 14 Targets Rammed 14 | . . . . . . 14 Kicked . | . . . . . . . Crushed . | . . . . . . . Highest Temperature 243 | . 10 . . . . 243 Average Temperature 54 | . 7 . . . . 60 Received Heat Transfer 255 | . 60 . 18 63 30 84 Siege Activations . | . . . . . . . Robots Corrupted . | . . . . . . . Combat Hostiles . | . . . . . . . Parts Fried . | . . . . . . . Impact Corruptions . | . . . . . . . Robots Melted . | . . . . . . . Combat Hostiles . | . . . . . . . Parts Melted . | . . . . . . . Heat Transferred 296 | . 37 . . . . 259 Parts Sabotaged . | . . . . . . . Parts Stolen . | . . . . . . . Parts Stripped . | . . . . . . . Power Chain Reactions . | . . . . . . . Missiles Intercepted . | . . . . . . . Alert | -11 -10 -10 -9 -8 -7 -6 ------- Run | Scr Mat Min Mat Mat Fac Fac Peak Influence 91 | . 15 5 91 83 85 70 Average Influence 30 | . 11 5 34 66 36 27 Maximum Alert Level . | . . . . . . . Low Security (%) 100 | 100 100 100 100 100 100 100 Level 1 . | . . . . . . . Level 2 . | . . . . . . . Level 3 . | . . . . . . . Level 4 . | . . . . . . . Level 5 . | . . . . . . . High Security . | . . . . . . . Max Security . | . . . . . . . Squads Dispatched 11 | . 5 . 1 1 1 3 Investigation 2 | . 2 . . . . . Extermination . | . . . . . . . Reinforcement 9 | . 3 . 1 1 1 3 Assault . | . . . . . . . Garrison . | . . . . . . . Intercept . | . . . . . . . Construction Impeded . | . . . . . . . Haulers Reinforced 1 | . . . . . . 1 Stealth | -11 -10 -10 -9 -8 -7 -6 --------- Run | Scr Mat Min Mat Mat Fac Fac Distress Signals 3 | . 1 . . 1 1 . Communications Jammed . | . . . . . . . Distress Signals . | . . . . . . . Times Spotted 73 | . 13 3 9 18 7 23 Peak Tracking Total 11 | . 4 3 10 11 3 9 Tactical Retreats 11 | . . . . 4 2 5 Traps | -11 -10 -10 -9 -8 -7 -6 ------- Run | Scr Mat Min Mat Mat Fac Fac Traps Triggered 3 | . . . . . 1 2 Indirectly . | . . . . . . . Trap Hack Attempts . | . . . . . . . Triggered . | . . . . . . . Disarmed . | . . . . . . . Reprogrammed . | . . . . . . . Reused . | . . . . . . . Traps Extracted . | . . . . . . . Installed . | . . . . . . . Triggered . | . . . . . . . Machines | -11 -10 -10 -9 -8 -7 -6 ---------- Run | Scr Mat Min Mat Mat Fac Fac Machines Disabled . | . . . . . . . Max in Single Turn . | . . . . . . . Machines Sabotaged . | . . . . . . . Garrisons Compromised . | . . . . . . . Overloaded Fab Kills . | . . . . . . . Fab Network Shutdowns . | . . . . . . . Hacking | -11 -10 -10 -9 -8 -7 -6 --------- Run | Scr Mat Min Mat Mat Fac Fac Machines Accessed 1 | . 1 . . . . . Terminals 1 | . 1 . . . . . Fabricators . | . . . . . . . Repair Stations . | . . . . . . . Recycling Units . | . . . . . . . Scanalyzers . | . . . . . . . Garrison Access . | . . . . . . . Total Hacks 3 | . 3 . . . . . Successful 1 | . 1 . . . . . Failed 2 | . 2 . . . . . Catastrophic 1 | . 1 . . . . . Database Lockouts . | . . . . . . . Manual . | . . . . . . . Terminals 3 | . 3 . . . . . Fabricators . | . . . . . . . Repair Stations . | . . . . . . . Recycling Units . | . . . . . . . Scanalyzers . | . . . . . . . Garrison Access . | . . . . . . . Terminal Hacks 1 | . 1 . . . . . Recall Reinforcements 1 | . 1 . . . . . Fabricator Hacks . | . . . . . . . Repair Station Hacks . | . . . . . . . Recycling Unit Hacks . | . . . . . . . Scanalyzer . | . . . . . . . Garrison Access Hacks . | . . . . . . . Unauthorized Hacks . | . . . . . . . Terminals . | . . . . . . . Fabricators . | . . . . . . . Repair Stations . | . . . . . . . Recycling Units . | . . . . . . . Scanalyzers . | . . . . . . . Garrison Access . | . . . . . . . Data Cores Recovered . | . . . . . . . Used . | . . . . . . . Hacking Detections 1 | . 1 . . . . . Full Trace Events . | . . . . . . . Feedback Events . | . . . . . . . Feedback Blocked . | . . . . . . . Robot Schematics Acquired . | . . . . . . . Robots Built . | . . . . . . . Matter . | . . . . . . . Time . | . . . . . . . Total Robot Build Rating . | . . . . . . . Part Schematics Acquired . | . . . . . . . Parts Built . | . . . . . . . Matter . | . . . . . . . Time . | . . . . . . . Total Part Build Rating . | . . . . . . . Parts Repaired . | . . . . . . . Time . | . . . . . . . Parts Recycled . | . . . . . . . Recycled Matter . | . . . . . . . Retrieved Matter . | . . . . . . . Retrieved Components . | . . . . . . . Parts Scanalyzed . | . . . . . . . Part Schematics Acquired . | . . . . . . . Parts Damaged . | . . . . . . . Bothacking | -11 -10 -10 -9 -8 -7 -6 ------------ Run | Scr Mat Min Mat Mat Fac Fac Used RIF Installer . | . . . . . . . Robots Hacked . | . . . . . . . Non-combat . | . . . . . . . Combat . | . . . . . . . Robot Hacks Applied . | . . . . . . . Relay Couplers Released . | . . . . . . . Robots Rewired . | . . . . . . . Allies Hacked . | . . . . . . . Hacks Repelled . | . . . . . . . Allies | -11 -10 -10 -9 -8 -7 -6 -------- Run | Scr Mat Min Mat Mat Fac Fac Total Allies . | . . . . . . . Largest Group . | . . . . . . . Highest-Rated Group . | . . . . . . . Highest-Rated Ally . | . . . . . . . Total Orders . | . . . . . . . Ally Attacks . | . . . . . . . Total Damage . | . . . . . . . Kills . | . . . . . . . Allies Corrupted . | . . . . . . . Allies Melted . | . . . . . . . Intel | -11 -10 -10 -9 -8 -7 -6 ------- Run | Scr Mat Min Mat Mat Fac Fac Robot Analysis Total . | . . . . . . . Derelict Logs Recovered . | . . . . . . . Drone Launches 2 | . . . . . . 2 Drone Recoveries . | . . . . . . . Exploration | -11 -10 -10 -9 -8 -7 -6 ------------- Run | Scr Mat Min Mat Mat Fac Fac Turns Passed 1629 | 47 324 16 141 164 495 442 Spaces Moved 1757 | 41 240 42 290 288 370 486 Core 421 | 10 . . . . . 411 Treads . | . . . . . . . Legs 400 | . . . . . 341 59 Wheels 267 | 31 191 . . 16 29 . Hover 16 | . . . . . . 16 Flight 653 | . 49 42 290 272 . . Fastest Speed 34 | 50 37 37 34 37 100 50 Average Speed 72 | 87 87 37 34 41 118 73 Slowest Speed 180 | 100 100 37 37 100 120 180 Overloaded Moves . | . . . . . . . Propulsion Burnouts . | . . . . . . . Robots Hopped 4 | . . . 3 1 . . Cave-ins Triggered . | . . . . . . . Exploration Rate (%) 25 | 3 46 16 32 42 16 20 Regions Visited 6 Branch Regions 1 Pre-discovered Areas . | . . . . . . . Known Exits Taken 5 | . 1 1 1 1 1 . Unknown Exits Taken 1 | 1 . . . . . . Scrap Searched . | . . . . . . . Spaces Dug . | . . . . . . . Terrain Destroyed . | . . . . . . . Melee . | . . . . . . . Projectile . | . . . . . . . AOE . | . . . . . . . Actions | -11 -10 -10 -9 -8 -7 -6 --------- Run | Scr Mat Min Mat Mat Fac Fac Total 2062 | 51 353 41 325 331 402 559 Wait 181 | . 96 . 30 36 . 19 Move 1743 | 40 239 41 283 285 369 486 Hop 4 | . . . 3 1 . . Pick Up 32 | 6 7 . 3 2 9 5 Fast Attach 1 | . . . . . 1 . Attach 29 | 5 3 . 3 5 5 8 Detach 3 | . 1 . . 1 . 1 Swap 8 | . 2 . 3 1 1 1 Drop 6 | . 3 . . . 1 2 Fire 12 | . 2 . . . . 10 Melee 17 | . . . . . 16 1 Ram 14 | . . . . . . 14 Kick . | . . . . . . . Crush . | . . . . . . . Escape Stasis 12 | . . . . . . 12 Rewire . | . . . . . . . Trap . | . . . . . . . Miscellaneous . | . . . . . . . Route ------- -11/Scrapyard -10/Materials -10/Mines -9/Materials -8/Materials -7/Factory -6/Factory History --------- Turn | Location | Event 14 | -11/Scrapyard | Discovered new exit (range 15) 48 | -11/Scrapyard | Entered Materials 166 | -10/Materials | Met 8R-AWN 304 | -10/Materials | Discovered new exit (range 15) 319 | -10/Materials | Build established: Mutant 370 | -10/Materials | Identified exit to Mines 372 | -10/Materials | Entered Mines 382 | -10/Mines | Met a Derelict bent on vengeance 385 | -10/Mines | Discovered new exit (range 7) 387 | -10/Mines | Identified exit to Materials 388 | -10/Mines | Entered Materials 388 | -9/Materials | Evolved 2 slots: Propulsion x1, Utility x1 522 | -9/Materials | Discovered new exit (range 17) 528 | -9/Materials | Identified exit to Materials 529 | -9/Materials | Entered another Materials area 529 | -8/Materials | Evolved 2 slots: Power x1, Utility x1 552 | -8/Materials | Lost 5 parts (1p1n1u2w) 685 | -8/Materials | Discovered new exit (range 8) 692 | -8/Materials | Identified exit to Factory 693 | -8/Materials | Entered Factory 693 | -7/Factory | Evolved 2 slots: Power x1, Propulsion x1 1161 | -7/Factory | Discovered new exit (range 9) 1187 | -7/Factory | Identified exit to Factory 1188 | -7/Factory | Entered another Factory area 1188 | -6/Factory | Evolved 2 slots: Propulsion x1, Utility x1 1317 | -6/Factory | Core integrity fell below 50% 1334 | -6/Factory | Lost 10 parts (2p5n1u2w) 1471 | -6/Factory | Core integrity fell below 20% 1630 | -6/Factory | Destroyed by S-27 Virus with Autogun Last Messages --------------- 01461_ O-24 Administrator uses terminal to summon reinforcements. 01461_ ALERT: Hostiles spotted, dispatching reinforcements to Terminal F001. 01461_ O-24 Administrator locks terminal. 01469_ K-01 Serf cleans the Power Conduit. 01470_ Triggered Heavy Explosive Trap. 01470_ An explosion rips through the floor. 01495_ O-24 Administrator: "IFF HANDSHAKE FAILED. SECURING TERMINAL." 01495_ Acquired Drone Bay. 01496_ System corrupted: Matter fused (-8). 01497_ Drone released from Drone Bay. 01502_ ALERT: Hostiles spotted, dispatching reinforcements to Terminal F015. 01522_ Acquired Katana. 01568_ VZQAAUL#8F1D|=I/#ZWE 01597_ OI3J=HB04AUVTW HZ7%Y5E = 01600_ Drone destroyed. 01610_ Dropped Drone Bay. 01622_ Acquired Imp. Gravmag System. 01630_ System corrupted: Matter fused (-7). Map ----- +----------------------------------------------------+ | ????????????????????????????? | | ????????????????????????????? | | ????????????????????????????? | | ????????????????????????????? | | ????????????????????????????? | | ????????????????????????????? | | ????????????????????????????? | | ????????????????????????????? | | ????????????????????????????? | | ????????????????????????????? | | ????????????????????????????? | | ????????????????????????????? | | ????????????????????????????? | | ????????????????????????????? | | ????????????????????????????? | | ????????????????????????????? | | ###??##??#??????????????????? | | # ?? ?? ??????????????????? | | # ""? """ #?????????????????? | | # """ """ #?????????????????? | | # """ """ #?????????????????? | | # #?????????????????? | | # """ """ #?????????????????? | | # """ """ +?????????????????? | | # """ """ #?????????????????? | | # s @ #??????"""????????? | | # """ """ #???? ?????????? | | #s""" """ #?? """""""""?????? | | #s""" """ # ??????? | | # + """""?????????? | | # # ??????? | | # #? """""""""?????? | | # # ?????????? | | #######+### """""""???????? | | ?????# ?????? | | ?????# """""?????????? | | ?????# ????? | | ?#######+## ????? | | ?# ############??????? | | ?# """ #?????????????????? | | ?# """ #?????????????????? | | ?# """ #?????????????????? | | ?# #?????????????????? | | ?# """ =#?????????????????? | | ?# """ #?????????????????? | | ?# """ #?????????????????? | | ?# ]! #?????????????????? | | ?########/#?????????????????? | | ????????# #?????????????????? | | ###?????# #?????????????????? | +----------------------------------------------------+ Best States ------------- Heat Dissipation 38 Energy Generation 15 Energy Capacity 275 Matter Stores 300 Matter Capacity 300 Sight Range 22 Robot Scan Range 20 Terrain Scan Density 10 ECM Strength 1 Evasion (%) 68 Item Schematics ----------------- None Robot Schematics ------------------ None Fabricated ------------ Nothing Alien Tech Used ----------------- None Achievements -------------- None Challenges ------------ None Game ------ Seed ArmoredStructuralReplicator Manual? 0 Play Time 00:26:19 Cumulative 13.0 hours Start 2020.05.14 @ 22:59:56 End 2020.05.14 @ 23:23:26 Sessions 1 Manual Loads 0 Difficulty Rogue Special Mode None Game No. 31 Rogue 31 Adventurer 0 Explorer 0 Win Type - Total 0 Types 0/0/0/0/0/0/0 Lore% 17 Gallery% 21 Achievement% 19 Wizard Run 0 Options --------- ASCII 0 Keyboard 0 Movement Mouse Keybinds 0 Fullscreen 2 Font 18/Terminus Map View 76x50 Tactical HUD 1 Map Filters NONE Filters NONE Steam 1 RUN: 01c55aef-cca0-4ed8-97c0-c51aba39fb50